Cogmind - Beta 11 @@@ ROGUE MODE // 2022.03.26 @ 12:39:47 Player: happylisk Result: Self-destructed Performance ------------- Evolutions (0) 0 Regions Visited (4) 800 Robots Destroyed (15) 75 Value Destroyed (392) 392 Prototype IDs (1) 20 Alien Tech Used (0) 0 Bonus (478) 478 TOTAL SCORE: 1765 Bonus ------- Follower Combat Kills 185 Aligned with FarCom 300 Friendly Fire -7 Cogmind --------- Core Integrity 34/250 Matter 300/300 Energy 125/125 System Corruption 1% Temperature Cool (0) Movement Walking (190) Ox1 Location -9/Mines Parts ------- > --- POWER (1) -------- Light Ion Engine > --- PROPULSION (2) --- Aluminum Leg Aluminum Leg > --- UTILITY (2) ------ Large Storage Unit 0b10 Alert Chip > --- WEAPON (2) ------- Medium Laser Light Assault Rifle > --- INVENTORY (15) --- Ion Engine Light Nuclear Core Aluminum Leg Heat Sink Improved Heat Sink Large Storage Unit Targeting Computer Utility Shielding Heavy EM Pulse Gun Grenade Launcher Peak State ------------ > --- POWER ------------ Light Ion Engine > --- PROPULSION ------- Aluminum Leg Aluminum Leg > --- UTILITY ---------- Large Storage Unit 0b10 Alert Chip > --- WEAPON ----------- Light Assault Rifle Light Assault Rifle > --- INVENTORY -------- Ion Engine Aluminum Leg Heat Sink Large Storage Unit Targeting Computer Utility Shielding Heavy EM Pulse Gun Medium Laser Light Assault Rifle Grenade Launcher [Rating: 13] Favorites ----------- Power Light Ion Engine Engine Light Ion Engine Propulsion Aluminum Leg Treads Light Treads Leg Aluminum Leg Utility Large Storage Unit Storage Large Storage Unit Processor 0b10 Alert Chip Weapon Light Assault Rifle Energy Gun Medium Laser Ballistic Gun Light Assault Rifle Launcher Grenade Launcher Build | -11 -10 -10 -10 -9 ------- Run | Scr Mat Min Exi Min Slots Evolved . | . . . . . Power . | . . . . . Propulsion . | . . . . . Utility . | . . . . . Weapon . | . . . . . Parts Attached 20 | 7 1 3 2 7 Power 2 | 1 . . . 1 Engine 2 | 1 . . . 1 Core . | . . . . . Reactor . | . . . . . Propulsion 5 | 3 . . . 2 Treads 1 | 1 . . . . Leg 4 | 2 . . . 2 Wheel . | . . . . . Hover . | . . . . . Flight . | . . . . . Utility 4 | 1 1 . 2 . Device . | . . . . . Storage 2 | 1 . . 1 . Processor 2 | . 1 . 1 . Hackware . | . . . . . Protection . | . . . . . Artifact . | . . . . . Weapon 9 | 2 . 3 . 4 Energy Gun 3 | 1 . 1 . 1 Energy Cannon . | . . . . . Ballistic Gun 5 | 1 . 1 . 3 Ballistic Cannon . | . . . . . Launcher 1 | . . 1 . . Special Weapon . | . . . . . Impact Weapon . | . . . . . Slashing Weapon . | . . . . . Piercing Weapon . | . . . . . Special Melee Weapon . | . . . . . Unidentified Prototypes 1 | . . . 1 . Parts Lost 6 | . . . . 6 Power 1 | . . . . 1 Propulsion 2 | . . . . 2 Utility . | . . . . . Weapon 3 | . . . . 3 Highest Loss Streak 3 | . . . . 3 To Critical Strikes . | . . . . . Average Slot Usage (%) 99 | . 98 100 100 99 Engine 13 | . 14 14 14 13 Leg 27 | . 28 28 28 27 Storage 14 | . 14 14 14 14 Processor 13 | . 12 14 14 14 Energy Gun 1 | . 14 . . 1 Ballistic Gun 26 | . 14 26 28 25 Naked Turns . | . . . . . Heaviest Build 26 | 11 11 11 25 26 Greatest Support 20 | 20 20 20 20 20 Greatest Overweight (x) 2 | . . . 1 2 Average Overweight (x) . | . . . . 1 Largest Inventory Capacity 15 | 8 8 8 15 15 Average Capacity 12 | 6 8 8 11 15 Most Carried 13 | 2 6 8 9 13 Average Carried 8 | . 4 7 8 10 Final Capacity 15 | 8 8 8 15 15 Final Carried 10 | 2 6 8 9 10 Class Distribution -------------------- 100% | Mutant Dominant Class ---------------- Mutant | -10/Materials Mutant | -10/Mines Mutant | -10/Exiles Mutant | -9/Mines Resources | -11 -10 -10 -10 -9 ----------- Run | Scr Mat Min Exi Min Matter Collected 526 | 232 52 16 53 173 Remotely . | . . . . . Salvage Created 446 | . 92 8 . 346 Parts 24 | . 5 5 . 14 Haulers Intercepted . | . . . . . Recyclers Shooed . | . . . . . Parts Field Recycled . | . . . . . Retrieved Matter . | . . . . . Parts Self-Destructed . | . . . . . Prevented . | . . . . . Kills | -11 -10 -10 -10 -9 ------- Run | Scr Mat Min Exi Min Combat Hostiles Destroyed 16 | . 2 3 . 11 Guns 13 | . 2 . . 11 AOE 3 | . . 3 . . Classes Destroyed 4 | . 1 1 . 2 Swarmer 6 | . . 3 . 3 Grunt 8 | . 2 . . 6 Duelist 1 | . . . . 1 Assembled 1 | . . . . 1 Best Kill Streak 3 | . 2 3 . 3 Combat Bots Only 3 | . 2 3 . 3 Max Kills in Single Turn 2 | . 1 2 . 1 Gunslinging . | . . . . . Exploded 2 | . . 2 . . Melee . | . . . . . Uniques/NPCs Destroyed . | . . . . . Combat | -11 -10 -10 -10 -9 -------- Run | Scr Mat Min Exi Min Damage Taken 870 | . 55 27 . 788 Core 216 | . . 10 . 206 Absorbed by Shields . | . . . . . Core Remaining (%) 100 | 100 . . . . Volleys Fired 59 | . 4 2 . 53 Largest 2 | . 2 1 . 2 Hottest 70 | . 70 30 . 70 Shots Fired 106 | . 8 2 . 96 Gun 104 | . 8 . . 96 Cannon . | . . . . . Launcher 2 | . . 2 . . Special . | . . . . . Kinetic 95 | . 4 . . 91 Thermal 9 | . 4 . . 5 Explosive 2 | . . 2 . . Electromagnetic . | . . . . . Robot Hit Streak 10 | . 8 10 . 8 Robot Miss Streak 3 | . . . . 3 Penetration Max . | . . . . . Secondary Targets 2 | . . . . 2 Max Gunslinging Chain 1 | . . . . 1 Shots Hit Robots 71 | . 8 2 . 61 Core Hits 31 | . 5 3 . 23 Critical Kills . | . . . . . Critical Parts Destroyed 1 | . . . . 1 Critical Strikes 2 | . . . . 2 Burn 1 | . . . . 1 Destroy 1 | . . . . 1 Melee Attacks . | . . . . . Impact . | . . . . . Slashing . | . . . . . Piercing . | . . . . . Sneak Attacks . | . . . . . Combat Hostiles . | . . . . . Follow-up Attacks . | . . . . . Damage Inflicted 804 | . 81 210 . 513 Guns 594 | . 81 . . 513 Cannons . | . . . . . Explosions 210 | . . 210 . . Melee . | . . . . . Ramming . | . . . . . Kinetic 507 | . 32 . . 475 Thermal 87 | . 49 . . 38 Explosive 210 | . . 210 . . Electromagnetic . | . . . . . Impact . | . . . . . Slashing . | . . . . . Piercing . | . . . . . Highest Corruption 1 | . 1 1 1 1 Average Corruption 1 | . 1 1 1 1 Corruption Purged . | . . . . . Corruption Blocked . | . . . . . Effects 16 | . . 2 7 7 Message Errors 4 | . . . . 4 Matter Fused 4 | . . . 3 1 Heat Flow Errors 1 | . . . 1 . Energy Discharges 2 | . . . 2 . Data Loss (minor) 4 | . . 1 1 2 Alerts 1 | . . 1 . . Overload Shots . | . . . . . Overflow Damage 7 | . . 7 . . Projectiles . | . . . . . Explosions 7 | . . 7 . . Melee . | . . . . . Knockbacks . | . . . . . Impact . | . . . . . Kinetic . | . . . . . Secondary . | . . . . . Self-Inflicted Damage . | . . . . . Shots . | . . . . . Rammed . | . . . . . Targets Rammed . | . . . . . Kicked . | . . . . . Crushed . | . . . . . Highest Temperature 254 | . 110 . 254 92 Average Temperature 42 | . 55 . 131 20 Received Heat Transfer 428 | . 30 . . 398 Siege Activations . | . . . . . Robots Corrupted . | . . . . . Combat Hostiles . | . . . . . Parts Fried . | . . . . . Impact Corruptions . | . . . . . Robots Melted . | . . . . . Combat Hostiles . | . . . . . Parts Melted 2 | . . . . 2 Heat Transferred 333 | . 148 . . 185 Parts Sabotaged . | . . . . . Parts Stolen . | . . . . . Parts Stripped . | . . . . . Power Chain Reactions . | . . . . . Missiles Intercepted . | . . . . . Alert | -11 -10 -10 -10 -9 ------- Run | Scr Mat Min Exi Min Peak Influence 152 | . 73 116 . 152 Initial 28 | . . 28 . . Average 40 | . 33 114 . 34 Maximum Alert Level . | . . . . . Low Security (%) 100 | 100 100 100 . 100 Level 1 . | . . . . . Level 2 . | . . . . . Level 3 . | . . . . . Level 4 . | . . . . . Level 5 . | . . . . . High Security . | . . . . . Max Security . | . . . . . Squads Dispatched . | . . . . . Investigation . | . . . . . Extermination . | . . . . . Reinforcement . | . . . . . Assault . | . . . . . Garrison . | . . . . . Intercept . | . . . . . Searches Triggered . | . . . . . Construction Impeded . | . . . . . Haulers Reinforced . | . . . . . Active Scanning Responses . | . . . . . Cargo Convoy Interrupts . | . . . . . Stealth | -11 -10 -10 -10 -9 --------- Run | Scr Mat Min Exi Min Distress Signals . | . . . . . Communications Jammed . | . . . . . Distress Signals . | . . . . . Times Spotted 26 | . 4 3 . 19 Peak Tracking Total 3 | . 2 3 . 3 Tactical Retreats 2 | . . . . 2 Traps | -11 -10 -10 -10 -9 ------- Run | Scr Mat Min Exi Min Traps Triggered 1 | . 1 . . . Indirectly . | . . . . . Trap Hack Attempts . | . . . . . Triggered . | . . . . . Disarmed . | . . . . . Reprogrammed . | . . . . . Reused . | . . . . . Traps Extracted . | . . . . . Installed . | . . . . . Triggered . | . . . . . Machines | -11 -10 -10 -10 -9 ---------- Run | Scr Mat Min Exi Min Machines Disabled . | . . . . . Max in Single Turn . | . . . . . Machines Sabotaged . | . . . . . Garrisons Compromised . | . . . . . Overloaded Fab Kills . | . . . . . Hacking | -11 -10 -10 -10 -9 --------- Run | Scr Mat Min Exi Min Machines Accessed 1 | . 1 . . . Terminals 1 | . 1 . . . Fabricators . | . . . . . Repair Stations . | . . . . . Recycling Units . | . . . . . Scanalyzers . | . . . . . Garrison Access . | . . . . . Total Hacks 2 | . 2 . . . Successful 1 | . 1 . . . Failed 1 | . 1 . . . Catastrophic . | . . . . . Database Lockouts . | . . . . . Manual 3 | . 2 . 1 . Terminals 2 | . 2 . . . Fabricators . | . . . . . Repair Stations . | . . . . . Recycling Units . | . . . . . Scanalyzers . | . . . . . Garrison Access . | . . . . . Terminal Hacks 1 | . 1 . . . Branch Access Points 1 | . 1 . . . Fabricator Hacks . | . . . . . Repair Station Hacks . | . . . . . Recycling Unit Hacks . | . . . . . Scanalyzer . | . . . . . Garrison Access Hacks . | . . . . . Unauthorized Hacks . | . . . . . Terminals . | . . . . . Fabricators . | . . . . . Repair Stations . | . . . . . Recycling Units . | . . . . . Scanalyzers . | . . . . . Garrison Access . | . . . . . Data Cores Recovered . | . . . . . Used . | . . . . . Hacking Detections 1 | . 1 . . . Full Trace Events . | . . . . . Feedback Events . | . . . . . Feedback Blocked . | . . . . . Robot Schematics Acquired . | . . . . . Robots Built . | . . . . . Authchips . | . . . . . Time . | . . . . . Total Robot Build Rating . | . . . . . Part Schematics Acquired . | . . . . . Parts Built . | . . . . . Authchips . | . . . . . Time . | . . . . . Total Part Build Rating . | . . . . . Parts Repaired . | . . . . . Time . | . . . . . Parts Recycled . | . . . . . Recycled Matter . | . . . . . Retrieved Matter . | . . . . . Retrieved Components . | . . . . . Parts Scanalyzed . | . . . . . Part Schematics Acquired . | . . . . . Parts Damaged . | . . . . . Bothacking | -11 -10 -10 -10 -9 ------------ Run | Scr Mat Min Exi Min Used RIF Installer . | . . . . . Robots Hacked . | . . . . . Non-combat . | . . . . . Combat . | . . . . . Robot Hacks Applied . | . . . . . Relay Couplers Released . | . . . . . Fabnet Peak Effective % . | . . . . . Robots Rewired . | . . . . . Allies Hacked . | . . . . . Hacks Repelled . | . . . . . Allies | -11 -10 -10 -10 -9 -------- Run | Scr Mat Min Exi Min Total Allies 3 | . . . . 3 Largest Group 3 | . . . . 3 Highest-Rated Group 40 | . . . . 40 Highest-Rated Ally 16 | . . . . 16 Total Orders . | . . . . . Ally Attacks 34 | . . . . 34 Total Damage 368 | . . . . 368 Kills 7 | . . . . 7 Allies Corrupted . | . . . . . Allies Melted . | . . . . . Intel | -11 -10 -10 -10 -9 ------- Run | Scr Mat Min Exi Min Robot Analysis Total . | . . . . . Derelict Logs Recovered 1 | . . . . 1 Drone Launches . | . . . . . Drone Recoveries . | . . . . . Exploration | -11 -10 -10 -10 -9 ------------- Run | Scr Mat Min Exi Min Turns Passed 2556 | 77 109 175 793 1402 Spaces Moved 1171 | 52 70 137 537 375 Core 5 | 5 . . . . Treads 15 | 15 . . . . Legs 1151 | 32 70 137 537 375 Wheels . | . . . . . Hover . | . . . . . Flight . | . . . . . Fastest Speed 50 | 50 120 120 120 190 Average Speed 155 | 124 120 120 147 191 Slowest Speed 260 | 160 120 120 190 260 Overloaded Moves . | . . . . . Propulsion Burnouts . | . . . . . Robots Hopped . | . . . . . Cave-ins Triggered . | . . . . . Exploration Rate (%) 44 | 4 19 38 91 70 Regions Visited 4 Branch Regions 3 Pre-discovered Areas . | . . . . . Known Exits Taken 1 | . 1 . . . Unknown Exits Taken 3 | 1 . 1 1 . Scrap Searched 3 | . . 1 . 2 Spaces Dug . | . . . . . Terrain Destroyed 6 | . . 6 . . Melee . | . . . . . Projectile . | . . . . . AOE 6 | . . 6 . . Terrain Rammed . | . . . . . Walls Destroyed . | . . . . . Machines Disabled . | . . . . . Actions | -11 -10 -10 -10 -9 --------- Run | Scr Mat Min Exi Min Total 1814 | 61 87 145 541 980 Wait 546 | . 9 . . 537 Move 1167 | 51 69 136 536 375 Hop . | . . . . . Pick Up 18 | 2 4 3 1 8 Fast Attach 9 | 7 1 . 1 . Attach 8 | . . 1 . 7 Detach . | . . . . . Swap 3 | . . 2 1 . Drop 4 | 1 . 1 2 . Fire 59 | . 4 2 . 53 Melee . | . . . . . Ram . | . . . . . Kick . | . . . . . Crush . | . . . . . Escape Stasis . | . . . . . Rewire . | . . . . . Trap . | . . . . . Miscellaneous . | . . . . . Route ------- -11/Scrapyard -10/Materials (discovered 2 exits: *Min x2) -10/Mines (discovered 2 exits: [*Mat] / *Exi) -10/Exiles (discovered 2 exits: [*Min x2]) -9/Mines History --------- Turn | Location | Event 5 | -11/Scrapyard | Discovered new exit (range 16) 78 | -11/Scrapyard | Entered Materials 96 | -10/Materials | Identified exit to Mines 187 | -10/Materials | Entered Mines 203 | -10/Mines | Met a Derelict bent on vengeance 285 | -10/Mines | Discovered new exit (range 13) 306 | -10/Mines | Build established: Mutant 357 | -10/Mines | Deemed a non-threat by the Exiles lab entrance 357 | -10/Mines | Discovered new exit (range 5) 362 | -10/Mines | Entered Exiles 378 | -10/Exiles | Discovered new exit (range 15) 395 | -10/Exiles | Met 8R-AWN 409 | -10/Exiles | Met EX-HEX 491 | -10/Exiles | Met EX-DEC 551 | -10/Exiles | Visited The Gauntlet 878 | -10/Exiles | Met EX-BIN 900 | -10/Exiles | Aligned with FarCom system 902 | -10/Exiles | Given EX-Vault access code 948 | -10/Exiles | Opened EX-Vault 962 | -10/Exiles | Found Prototype Processor 962 | -10/Exiles | Identified 0b10 Alert Chip 1005 | -10/Exiles | Warned to stay clear of 0b10 Research branches 1140 | -10/Exiles | Discovered new exit (range 10) 1155 | -10/Exiles | Left Exiles lab with 0b10 Alert Chip 1155 | -10/Exiles | Entered Mines 1196 | -9/Mines | Core integrity fell below 50% 1528 | -9/Mines | Excavation squad dispatched 1528 | -9/Mines | A large section of the Mines collapsed 1778 | -9/Mines | Excavation squad dispatched 2028 | -9/Mines | Excavation squad dispatched 2120 | -9/Mines | Assisted by bots powering up and referring to "LRC-V3" 2278 | -9/Mines | Excavation squad dispatched 2356 | -9/Mines | Core integrity fell below 20% 2397 | -9/Mines | Lost 3 parts (1n2w) 2504 | -9/Mines | Learned Materials stockpile data 2528 | -9/Mines | Excavation squad dispatched 2557 | -9/Mines | Self-destructed Last Messages --------------- Lgt. Assault Rifle destroyed. Aluminum Leg destroyed. K-01 Serf collects debris. G-34 Mercenary destroyed. K-01 Serf collects debris. Lgt. Assault Rifle destroyed. K-01 Serf collects debris. G-34 Mercenary destroyed. K-01 Serf collects debris. Acquired 35 matter. K-01 Serf collects debris. G-34 Mercenary suffers critical hit (Burn). Ion Engine melted. G-34 Mercenary destroyed. K-01 Serf collects debris. Acquired 4 matter. Acquired derelict log, extracted data. Data stored: Materials stockpile data. ALERT: Derelict activity in mines confirmed. Dispatching additional escorted excavation squad. Map ----- +----------------------------------------------------+ | ?# #?##### ????????## ##"####??????# #?????####? | | ?# [#?????####???????# ######????????# #?????? #? | | ?#=%#????????????????###?????????????# #?????? ? | | ?# ######???????????????????????????# #####??# #? | | ?# ## ##??????????????????????????# #??# #? | | ## #??????????????????????????##### #### #? | | #???????????#####??????????????# #? | | ##########??## ##?????????????# ######? | | [%=% % #??# #?????????????# #?????? | | ## !*[% % #??# #?????????????# #?????? | | #### ####### #?## #??????????????# #?????? | | ##??## #?????# ### ##??????####?### #?????? | | ##????# #?????# ##????## ### ##????? | | #?????# #?????# ##??## ##### | | #?????# #?????#### #### | | ??????# #????????## ## t | | ??????# #?????????## #### g r #### #### | | ??????# #??????????####??## ##??? #???? | | ??????# #?????????????????# r #???? #???? | | ??????# #????????????????## ### #???? #???? | | ??????# #???????????????## ### #????? ???? | | ??????# #??????????????##t ## #?????#???? | | ???#### #????########### #?????????? | | ???# #????# # #?????????? | | ???#=#####????# gg #?????????? | | ???#=#????????# #### @## ##?????????? | | #### #????##### #??# #### ##??????????? | | %=#????# #??## ##??##### ###???????????? | | """*#????# #???####???????# ####??????????? | | """*#????# ######??????????????# # #######????? | | """%#????# #??????????????????##] gg #??? | | #????# #?????????????##???#% g###???????? | | """ #????# #????????????## #?## ##????????? | | """ #????# #????????##### ## ####?????? | | """ #????# #????????# ###???? | | #????# #???##???# #??? | | #????# #???# ##### #??? | | #????# #???# #????????# ### #??? | | ######????# #???# #????????# #??????? | | ??????????# #???# #????????## ### #??? | | ??????????# #???# #?????????## #??# ### ???? | | ??????????# #???# #??????????##% #???# ##??????? | | ???######## #???# ######??????# #????####???????? | | #### ## ##### ##?????# #???????????????? | | % ###?### #???????????????? | | ! ### #???????????????? | | ## ## #???????????????? | | ?# ## ## ###???????????????? | | ?## ######## #### ######?????????????????? | | ??## ##??????## ##??#####??????????????????????? | +----------------------------------------------------+ Best States ------------- Heat Dissipation 25 Energy Generation 10 Energy Capacity 125 Matter Stores 300 Matter Capacity 300 Sight Range 16 Terrain Scan Density 10 Evasion (%) 55 Targeting Accuracy 5 Recoil Reduction 1 Item Schematics ----------------- None Robot Schematics ------------------ None Fabricated ------------ Nothing Alien Tech Used ----------------- None Achievements -------------- None Challenges ------------ None Game ------ Seed BladeNeutronCharge Manual? 0 Play Time 00:15:03 Cumulative 127.8 hours Start 2022.03.26 @ 12:28:49 End 2022.03.26 @ 12:39:47 Sessions 1 Manual Loads 0 Difficulty Rogue Special Mode None Game No. 148 Rogue 106 Adventurer 0 Explorer 42 Win Type - Total 12 Types 9/0/2/1/0/0/0/0/0 Lore% 53 Gallery% 65 Achievement% 39 Wizard Run 0 Options --------- ASCII 0 Keyboard 0 Movement Numpad Keybinds 0 Fullscreen 1 Font 18/SmallcapsGlow Map View 76x50 Tactical HUD 0 Map Filters NONE Filters NONE Steam 1 RUN: ba770eee-bec3-406e-80ef-bda097a52929